bitfinex/quotes_ETHUSD_20250929
["timestamp","ask_amount","ask_price","bid_price","bid_amount"]
[1759149344748,2.42488906,4123.9,4123.8,0.2441]
[1759149344949,2.42408906,4123.9,4123.8,0.2441]
[1759149345149,2.42500727,4123.7,4123.5,0.3649]
[1759149345708,3.088,4124.0,4123.6,0.73365065]
[1759149345709,3.2088,4124.0,4123.6,0.73365065]
[1759149345870,3.2088,4124.0,4123.7,0.7094]
[1759149346071,0.1208,4124.0,4123.8,0.2441]
[1759149346270,3.086,4124.3,4123.9,0.48954889]
[1759149346487,5.51070421,4124.3,4124.0,0.2441]
[1759149346701,2.42473161,4124.2,4124.1,0.2441]
[1759149347001,3.086,4124.3,4124.1,0.2441]
[1759149347493,2.42471267,4124.2,4124.1,0.2441]
[1759149348004,3.086,4124.3,4123.8,0.7094]
[1759149348204,2.4247561,4124.2,4123.9,0.2441]
[1759149348573,2.42477777,4124.1,4123.9,0.2441]
[1759149349209,3.086,4124.3,4124.0,0.2441]
[1759149349380,3.086,4124.3,4124.0,0.4653]
[1759149349577,2.4248391,4124.0,4123.7,0.61035006]
[1759149349886,2.4248391,4124.0,4123.8,0.2441]
[1759149350083,2.4248391,4124.0,4123.9,0.2441]
[1759149350288,2.42489291,4123.9,4123.7,0.5861]
[1759149350483,2.42484822,4124.0,4123.7,0.3649]
[1759149350685,3.086,4124.3,4123.8,0.2441]
[1759149350889,2.42488906,4123.9,4123.8,0.2441]
[1759149351086,2.42494786,4123.8,4123.7,0.1208]
[1759149351301,2.42494786,4123.8,4123.4,14.7441]
[1759149351489,0.1208,4123.9,4123.5,0.7094]
[1759149351810,2.54569856,4123.9,4123.6,0.2441]
[1759149352016,2.54569856,4123.9,4123.7,0.2441]
[1759149352508,3.086,4124.3,4123.8,0.73364947]
[1759149352684,0.1208,4124.6,4123.9,0.7094]
[1759149352875,2.54528698,4124.6,4124.0,0.8544483]
[1759149353081,2.42453867,4124.5,4124.1,14.7441]
[1759149353306,2.42453867,4124.5,4124.2,0.26834712]
[1759149353514,2.42453867,4124.5,4124.3,0.2441]
[1759149353887,2.42453867,4124.5,4124.4,14.5]
[1759149354093,0.1208,4124.6,4124.4,14.5]
[1759149354327,2.54529388,4124.6,4124.4,14.5]
[1759149354529,2.4245363,4124.5,4124.4,14.5]
[1759149354691,2.54532278,4124.6,4124.4,14.5]
[1759149354885,2.4245363,4124.5,4124.4,14.5]
[1759149355102,3.68600826,4124.5,4124.4,14.5]
[1759149355423,6.68600826,4124.5,4124.4,14.5]
[1759149356206,11.22900826,4124.5,4124.4,14.5]
[1759149356403,6.23020826,4124.5,4124.4,14.5]
[1759149356635,9.31520826,4124.5,4124.4,14.5]
[1759149358417,9.75750826,4124.5,4124.4,14.5]
[1759149359107,11.22900826,4124.5,4124.4,14.5]
[1759149359727,9.31520826,4124.5,4124.4,14.5]
[1759149360111,9.75750826,4124.5,4124.4,14.5]
[1759149360314,9.75750826,4124.5,4123.5,3.3281]
[1759149360315,2.42487538,4124.0,4123.5,3.3281]
[1759149360527,2.42494657,4123.9,4123.5,3.3281]
[1759149360837,2.54559903,4124.1,4123.6,14.7441]
[1759149361021,2.42492767,4123.9,4123.6,14.7441]
[1759149361336,2.42500666,4123.7,4123.6,14.7441]
[1759149361903,0.5631,4124.1,4123.6,14.7441]
[1759149362135,2.42497972,4123.8,4123.6,14.7441]
[1759149362643,2.42512428,4123.5,4122.9,0.2441]
[1759149362816,7.22353142,4123.4,4122.8,0.002]
[1759149363016,10.66583142,4123.4,4123.0,14.5]
[1759149363331,10.67933142,4123.4,4123.0,14.5]
[1759149364005,12.12383142,4123.4,4123.0,14.5]
[1759149364208,14.04652699,4123.4,4123.0,14.5]
[1759149364508,14.04652699,4123.4,4122.8,0.002]
[1759149365608,11.68182553,4122.9,4122.8,0.002]
[1759149365933,14.76682553,4122.9,4122.8,0.002]
[1759149366234,15.22262553,4122.9,4122.8,0.002]
[1759149366413,17.46725887,4122.9,4122.8,0.002]
[1759149367138,2.42559487,4122.7,4122.6,1e-08]
[1759149367299,8.51059487,4122.7,4122.6,1e-08]
[1759149367505,8.96639487,4122.7,4122.6,1e-08]
[1759149369864,10.42359487,4122.7,4122.6,1e-08]
[1759149370163,11.00804282,4122.7,4122.6,1e-08]
[1759149371635,10.99454282,4122.7,4122.6,1e-08]
[1759149373056,6.00924282,4122.7,4122.6,1e-08]
[1759149373255,6.00924282,4122.7,4122.6,0.69550001]
[1759149373442,2.42479487,4122.7,4122.6,0.69550001]
[1759149373628,0.1208,4122.8,4122.6,0.69550001]
[1759149373834,0.1208,4122.8,4122.7,0.6955]
[1759149374035,5.54633604,4122.8,4122.7,0.6955]
[1759149374435,0.1208,4122.8,4122.7,0.2352]
[1759149374681,2.54633604,4122.8,4122.7,0.6955]
[1759149375040,2.54633604,4122.8,4122.7,0.2352]
[1759149375371,2.54633604,4122.8,4122.7,0.6955]
[1759149376684,0.1208,4122.8,4122.7,0.6955]
[1759149376980,0.1208,4122.8,4122.7,15.1955]
[1759149377849,4.79834832,4123.9,4122.7,16.71525]
[1759149378074,2.42522976,4123.4,4122.9,0.1208]
[1759149378282,4.79834832,4123.0,4122.9,0.1208]
[1759149378489,8.91201911,4123.0,4122.7,14.5]
[1759149378776,2.42553604,4122.8,4122.7,14.7352]
[1759149379154,5.51924831,4123.3,4122.7,15.1955]
[1759149379359,2.42548619,4122.9,4122.8,0.6955]
[1759149379568,2.42553604,4122.8,4122.7,14.5]
[1759149380162,2.42553604,4122.8,4122.7,15.1955]
[1759149380776,4.79834832,4123.1,4122.7,15.1955]
[1759149381083,2.42553604,4122.8,4122.7,14.5]
[1759149381651,2.42553604,4122.8,4122.7,15.1955]
[1759149382079,7.22388436,4122.8,4122.7,14.5]
[1759149382667,7.22388436,4122.8,4122.7,14.7352]
[1759149383714,7.22388436,4122.8,4122.6,1e-08]
[1759149383715,2.42559487,4122.7,4122.6,1e-08]
[1759149384024,5.42559487,4122.7,4122.6,1e-08]
[1759149384169,5.42559487,4122.7,4122.6,0.46030001]
[1759149384485,2.42548349,4122.9,4122.6,0.46030001]
[1759149384684,3.096,4123.3,4122.7,0.6955]
[1759149384685,2.4255409,4122.8,4122.7,0.6955]
[1759149384888,2.4255409,4122.8,4122.7,0.2352]
[1759149385198,7.22388922,4122.8,4122.7,14.7352]
[1759149385583,7.22388922,4122.8,4122.7,14.5]
[1759149386707,7.22388922,4122.8,4122.7,14.7352]
[1759149387468,7.22388922,4122.8,4122.7,14.5]
[1759149388593,7.34468922,4122.8,4122.7,14.5]
[1759149388914,7.34468922,4122.8,4122.7,14.9603]
[1759149389069,2.42553604,4122.8,4122.7,15.1955]
[1759149391408,2.54621335,4123.1,4122.7,16.72733]
[1759149391589,2.42541335,4123.1,4122.8,0.71975536]
[1759149391789,1.458,4123.9,4122.8,0.71975536]
[1759149391790,3.1208,4123.7,4123.0,0.1208]
[1759149391980,2.4251831,4123.4,4123.1,0.6955]
[1759149392180,2.42534087,4123.2,4123.1,0.4603]
[1759149392629,2.42534087,4123.2,4123.0,0.1208]
[1759149392630,2.42535955,4123.1,4123.0,0.1208]
[1759149392915,2.42530136,4123.2,4123.0,0.5811]
[1759149393111,2.42530136,4123.2,4123.1,14.5]
[1759149393292,2.42530136,4123.2,4123.1,14.7352]
[1759149393480,2.42530136,4123.2,4123.1,15.1955]
[1759149393824,2.42530136,4123.2,4123.1,14.7352]
[1759149394026,2.42530136,4123.2,4123.1,14.5]
[1759149394707,2.42530136,4123.2,4123.1,14.7352]
[1759149394901,2.42450136,4123.2,4123.1,14.5]
[1759149396120,9.97650136,4123.2,4123.1,14.5]
[1759149396312,12.4523048,4123.2,4123.1,14.5]
[1759149396612,7.00415955,4123.1,4122.6,1e-08]
[1759149396782,2.42559487,4122.7,4122.6,1e-08]
[1759149397411,2.88129487,4122.7,4122.6,1e-08]
[1759149397613,7.33929487,4122.7,4122.6,1e-08]
[1759149397803,9.11860691,4122.7,4122.6,1e-08]
[1759149397976,9.10510691,4122.7,4122.6,1e-08]
[1759149398918,9.11860691,4122.7,4122.6,1e-08]
[1759149399114,8.64940691,4122.7,4122.6,1e-08]
[1759149399316,5.42559487,4122.7,4122.6,0.23450001]
[1759149399484,8.52059487,4122.7,4122.6,0.68510001]
[1759149399816,5.42559487,4122.7,4122.6,0.68510001]
[1759149400011,2.42559487,4122.7,4122.6,0.68510001]
[1759149400813,2.42559487,4122.7,4122.6,1e-08]
[1759149401015,2.42559487,4122.7,4122.6,14.50000001]
[1759149401183,2.42559487,4122.7,4122.6,14.73450001]
[1759149402519,2.42559487,4122.7,4122.6,15.18510001]
[1759149402815,2.42559487,4122.7,4122.6,14.73450001]
[1759149403307,2.42559487,4122.7,4122.6,14.50000001]
[1759149406332,6.35586208,4122.7,4122.6,14.50000001]
[1759149406623,8.25046208,4122.7,4122.6,1e-08]
[1759149408431,11.25046208,4122.7,4122.6,1e-08]
[1759149409027,10.81386208,4122.7,4122.6,1e-08]
[1759149409497,10.81086208,4122.7,4122.6,1e-08]
[1759149411909,11.24746208,4122.7,4122.6,1e-08]
[1759149412790,10.81086208,4122.7,4122.6,1e-08]
[1759149413630,11.24746208,4122.7,4122.6,1e-08]
[1759149414336,10.81086208,4122.7,4122.6,1e-08]
[1759149414503,10.81086208,4122.7,4122.6,0.23450001]
[1759149414504,9.97059487,4122.7,4122.6,0.23450001]
[1759149415232,9.97059487,4122.7,4122.6,14.73450001]
[1759149417511,9.97059487,4122.7,4122.6,14.50000001]
[1759149418691,1.458,4123.1,4122.6,0.68510001]
[1759149418891,2.42553604,4122.8,4122.7,0.6851]
[1759149419116,5.42553604,4122.8,4122.7,0.6851]
[1759149419333,0.1208,4122.9,4122.7,0.6851]
[1759149419334,2.54629772,4122.9,4122.7,15.1851]
[1759149419506,0.001,4123.2,4122.7,15.1851]
[1759149419507,0.001,4123.2,4122.8,0.6851]
[1759149419844,2.42457532,4123.1,4122.8,0.6851]
[1759149420038,2.42457532,4123.1,4122.7,16.01871]
[1759149420239,2.42541838,4123.0,4122.9,0.6851]
[1759149420442,2.42541838,4123.0,4122.7,16.01871]
[1759149420670,2.42543002,4123.0,4122.8,1.922451]
[1759149421157,2.42543002,4123.0,4122.9,0.2345]
[1759149421316,2.42553604,4122.8,4122.7,14.5]
[1759149421772,5.42559487,4122.7,4122.6,1e-08]
[1759149421922,5.98299487,4122.7,4122.6,1e-08]
[1759149422320,5.54639487,4122.7,4122.6,1e-08]
[1759149423017,7.00439487,4122.7,4122.6,1e-08]
[1759149423217,11.27593414,4122.7,4122.6,1e-08]
[1759149423650,11.71253414,4122.7,4122.6,1e-08]
[1759149425067,11.72603414,4122.7,4122.6,1e-08]
[1759149425265,17.28321861,4122.7,4122.6,1e-08]
[1759149426767,6.88406564,4121.9,4120.7,0.2345]
[1759149426984,15.52625011,4121.9,4120.1,3.087]
[1759149427142,15.97635011,4121.9,4120.4,0.2345]
[1759149427343,15.97635011,4121.9,4120.5,14.5]
[1759149427950,15.97635011,4121.9,4120.6,0.2345]
[1759149428564,16.76835011,4121.9,4120.7,14.5]
[1759149428767,11.21116564,4121.9,4120.7,14.5]
[1759149428968,18.13206558,4121.9,4120.8,0.2345]
[1759149429478,2.42665437,4120.9,4120.8,0.2345]
[1759149429778,5.51265437,4120.9,4120.8,0.2345]
[1759149430079,5.51265437,4120.9,4120.8,0.6646]
[1759149430278,2.42671325,4120.8,4120.7,14.5]
[1759149430667,2.42671325,4120.8,4120.7,15.1613]
[1759149432281,2.42671325,4120.8,4120.7,14.7312]
[1759149432450,2.42671325,4120.8,4120.7,14.5]
[1759149432649,2.42671325,4120.8,4120.7,14.7312]
[1759149433149,2.42671325,4120.8,4120.7,14.5]
[1759149433581,5.42671325,4120.8,4120.7,14.5]
[1759149434291,2.42688994,4120.5,4120.4,0.2312]
[1759149434584,2.42708516,4120.2,4120.0,0.4381]
[1759149434791,2.42708516,4120.2,4120.1,14.5]
[1759149435003,2.42708516,4120.2,4120.1,15.1755]
[1759149435589,3.085,4120.5,4120.1,15.1755]
[1759149435746,2.42696133,4120.4,4120.2,0.6755]
[1759149435946,2.42696133,4120.4,4120.3,0.6755]
[1759149436163,3.085,4120.5,4120.1,14.5]
[1759149436164,2.42702176,4120.3,4120.1,14.5]
[1759149436475,5.51189279,4120.5,4120.1,14.5]
[1759149436476,3.085,4120.5,4120.1,14.5]
[1759149436668,2.42706664,4120.2,4120.1,14.7374]
[1759149436863,2.42702491,4120.3,4120.1,14.7374]
[1759149437049,2.42700774,4120.3,4120.2,0.2374]
[1759149437450,5.51100774,4120.3,4120.2,0.2374]
[1759149438275,5.51100774,4120.3,4120.1,14.5]
[1759149438276,2.42706664,4120.2,4120.1,14.5]
[1759149440072,2.42747906,4119.5,4119.4,0.3582]
[1759149440407,2.42747906,4119.5,4119.4,0.6755]
[1759149440569,2.42747906,4119.5,4119.4,15.1755]
[1759149441098,0.1208,4119.6,4119.4,15.1755]
[1759149441299,0.1208,4119.6,4119.5,0.6755]
[1759149441506,2.5482236,4119.6,4119.5,0.6755]
[1759149442280,2.42747906,4119.5,4119.4,14.5]
[1759149442802,8.94307906,4119.5,4119.4,14.5]
[1759149443178,11.13852406,4119.5,4119.4,14.5]
[1759149443780,10.70692406,4119.5,4119.4,14.5]
[1759149444708,10.70612406,4119.5,4119.4,14.5]
[1759149444914,9.96867906,4119.5,4119.4,14.5]
[1759149445118,8.50967906,4119.5,4119.4,15.1755]
[1759149445606,5.42667906,4119.5,4119.4,15.1755]
[1759149445794,0.73029749,4120.2,4119.4,15.1755]
[1759149446002,2.42736593,4119.7,4119.5,0.2374]
[1759149446177,2.42736593,4119.7,4119.6,0.4381]
[1759149446374,2.42736593,4119.7,4119.6,0.6755]
[1759149446693,3.0,4120.0,4119.6,0.6755]
[1759149446899,3.1208,4120.1,4119.5,0.02427479]
[1759149447098,2.42730229,4119.8,4119.7,0.6755]
[1759149447697,2.42742226,4119.6,4119.4,14.6208]
[1759149447907,2.42743635,4119.6,4119.5,0.2374]
[1759149448212,6.085,4120.0,4119.5,0.6755]
[1759149448378,2.42725122,4119.9,4119.5,0.6755]
[1759149448581,6.085,4120.0,4119.4,14.6208]
[1759149448582,6.085,4120.0,4119.6,0.6755]
[1759149448818,0.1208,4120.1,4119.7,0.6755]
[1759149449110,5.55718447,4121.1,4119.8,0.69977302]
[1759149449111,2.42708679,4120.2,4119.8,0.69977302]
[1759149449416,2.42712854,4120.1,4119.9,0.6755]
[1759149449615,2.42712854,4120.1,4119.7,0.1208]
[1759149449814,2.42712854,4120.1,4120.0,0.6755]
[1759149450433,8.63176092,4120.4,4120.0,0.6755]
[1759149450585,2.42703726,4120.3,4120.0,0.6755]
[1759149450784,0.1208,4120.4,4120.1,0.6755]
[1759149450984,0.1208,4120.4,4119.7,0.14507361]
[1759149451185,0.1208,4120.4,4119.8,0.99840736]
[1759149451380,0.1208,4120.4,4119.9,0.6755]
[1759149451601,2.42700774,4120.3,4120.2,14.5]
[1759149451886,2.42700774,4120.3,4120.2,15.1755]
[1759149452087,5.94260774,4120.3,4120.2,14.5]
[1759149452616,2.42742013,4119.6,4119.5,0.1208]
[1759149452819,2.42753799,4119.4,4118.9,0.1228]
[1759149453111,5.51453799,4119.4,4118.9,0.002]
[1759149453329,6.06693799,4119.4,4118.9,0.002]
[1759149453490,7.15911582,4119.4,4118.9,0.002]
[1759149454396,6.72751582,4119.4,4118.9,0.002]
[1759149454802,5.63533799,4119.4,4118.9,0.002]
[1759149455704,6.06693799,4119.4,4118.9,0.002]
[1759149456610,5.63433799,4119.4,4119.3,0.2394]
[1759149456989,5.63433799,4119.4,4119.3,0.002]
[1759149457593,9.07943799,4119.4,4119.3,0.002]
[1759149457924,11.8339279,4119.4,4119.3,0.002]
[1759149458649,11.8204279,4119.4,4119.3,0.002]
[1759149459660,12.0578279,4119.4,4119.3,0.002]
[1759149459861,12.0713279,4119.4,4119.3,0.002]
[1759149461469,12.0578279,4119.4,4119.3,0.002]
[1759149461985,12.0578279,4119.4,4115.6,1.9909424]
[1759149461986,7.28420541,4118.5,4115.6,1.9909424]
[1759149462188,1.458,4117.3,4115.7,0.2495]
[1759149462346,1.458,4116.9,4115.7,0.6813]
[1759149462547,2.42947464,4116.2,4115.8,0.2495]
[1759149462753,3.12,4116.3,4115.9,0.4318]
[1759149463060,5.54937292,4116.3,4116.0,0.6813]
[1759149463261,2.4296387,4115.9,4114.8,2.676]
[1759149463467,2.42961582,4115.9,4114.9,0.51063458]
[1759149463878,2.42968432,4115.8,4115.0,0.6813]
[1759149464080,2.42966168,4115.8,4115.1,0.6813]
[1759149464283,2.42974822,4115.7,4115.2,0.4318]
[1759149464465,2.42967406,4115.8,4115.3,0.2495]
[1759149464654,2.42967406,4115.8,4115.4,0.4318]
[1759149464852,3.119,4116.1,4115.5,0.6813]
[1759149465057,5.54853444,4116.1,4115.6,0.6813]
[1759149465251,5.54853444,4116.1,4114.9,0.51063458]
[1759149465252,5.54849599,4116.1,4115.7,0.6813]
[1759149465503,2.4295573,4116.0,4115.8,0.6813]
[1759149465681,3.119,4116.1,4115.9,0.2495]
[1759149465885,2.42954324,4116.0,4115.8,0.4318]
[1759149466083,2.42960227,4115.9,4115.8,0.4318]
[1759149466481,2.429742,4115.7,4114.9,0.51063458]
[1759149466684,2.42979992,4115.6,4115.0,1.76739023]
[1759149466983,2.42979992,4115.6,4115.1,0.6813]
[1759149467186,0.73087928,4116.2,4115.0,0.29409023]
[1759149467379,2.42954324,4116.0,4115.1,0.2495]
[1759149467687,6.558,4116.1,4115.1,0.2495]
[1759149467688,6.44538915,4115.9,4115.2,0.02430015]
[1759149467908,0.73099326,4116.3,4115.3,0.2495]
[1759149468052,2.42947115,4116.2,4115.4,0.45609897]
[1759149468255,2.42947094,4116.2,4115.5,0.2495]
[1759149468493,2.42949158,4116.1,4115.6,0.02429779]
[1759149468678,2.42944141,4116.2,4115.6,0.45609779]
[1759149468879,3.117,4116.3,4115.7,0.2495]
[1759149469089,0.4318,4116.5,4111.4,1.22610763]
[1759149469090,0.441,4116.2,4114.2,0.02430606]
[1759149469299,3.0,4116.0,4115.3,0.4318]
[1759149469494,3.0,4116.0,4113.1,0.49677159]
[1759149469495,0.441,4115.9,4112.9,3.16226648]
[1759149469697,2.42977937,4115.6,4114.4,0.4318]
[1759149469891,3.0,4115.7,4114.4,0.4318]
[1759149469892,2.43030759,4114.8,4114.5,0.2495]
[1759149470091,2.43026082,4114.8,4114.6,0.6813]
[1759149470294,2.48132794,4115.5,4114.6,0.4318]
[1759149470295,2.43031083,4114.7,4114.6,0.4318]
[1759149470470,2.430399,4114.6,4113.5,2.43096703]
[1759149470670,2.430399,4114.6,4114.1,0.4318]
[1759149470914,2.43026707,4114.8,4114.2,0.6813]
[1759149471313,2.43031276,4114.7,4114.3,0.2495]
[1759149471483,2.43031276,4114.7,4113.5,3.792]
[1759149471484,2.43031276,4114.7,4114.4,0.4318]
[1759149471678,2.43032467,4114.7,4114.5,0.2495]
[1759149471887,2.43032467,4114.7,4114.5,0.3703]
[1759149472078,2.43032531,4114.7,4114.5,0.3703]
[1759149472300,2.43032531,4114.7,4114.6,0.2495]
[1759149472499,0.73106629,4115.0,4114.6,0.6813]
[1759149472706,0.73106629,4115.0,4114.9,0.1208]
[1759149472911,0.73106629,4115.0,4114.9,0.6813]
[1759149473210,3.0,4116.1,4114.9,0.8021]
[1759149473211,5.55670572,4115.8,4114.9,0.8021]
[1759149473516,2.42970701,4115.8,4115.0,0.6813]
[1759149473709,2.42975354,4115.7,4115.4,0.1208]
[1759149474017,3.28128315,4116.0,4115.5,0.70559838]
[1759149474018,0.7309238,4116.0,4115.5,0.70559838]
[1759149474317,2.42961592,4115.9,4115.6,0.6813]
[1759149474534,2.42955442,4116.0,4115.7,0.0242972]
[1759149474708,0.441,4116.6,4115.7,0.0242972]
[1759149474709,3.38116898,4116.9,4115.8,0.6813]
[1759149474910,2.42932338,4116.4,4115.9,0.2495]
[1759149475073,0.73080095,4116.4,4115.9,0.6813]
[1759149475278,3.129,4116.8,4116.2,0.1208]
[1759149475598,3.15978399,4116.9,4116.5,0.1208]
[1759149475793,3.15978399,4116.9,4116.6,0.2495]
[1759149475972,2.42910917,4116.8,4116.7,0.2495]
[1759149476175,2.42910917,4116.8,4116.5,0.5526]
[1759149476487,2.42918913,4116.6,4116.5,0.8021]
[1759149476693,2.42918913,4116.6,4116.5,0.3703]
[1759149477482,2.42918913,4116.6,4116.5,0.1208]
[1759149478482,2.42941089,4116.3,4116.2,0.1208]
[1759149478709,0.441,4116.5,4115.6,0.2495]
[1759149478931,0.441,4116.5,4115.9,0.1208]
[1759149478932,2.42949816,4116.1,4115.9,0.1208]
[1759149479099,2.42954324,4116.0,4115.9,0.1208]
[1759149480285,0.441,4116.2,4115.3,0.2495]
[1759149480599,2.42976151,4115.7,4115.5,0.1208]
[1759149480796,2.42977937,4115.6,4115.5,0.1208]
[1759149480999,2.87077937,4115.6,4115.5,0.1208]
[1759149481308,2.43013365,4115.0,4114.9,0.2495]
[1759149481510,2.43013365,4115.0,4114.7,4.23]
[1759149481710,0.441,4115.6,4114.7,4.23]
[1759149481711,3.126,4115.6,4114.7,4.23]
[1759149481915,5.4299565,4115.3,4114.5,4.23]
[1759149482117,2.4303699,4114.6,4114.5,4.23]
[1759149483087,2.43030659,4114.8,4114.5,4.23]
[1759149483314,5.43010541,4115.1,4114.5,4.23]
[1759149483587,3.0,4115.1,4114.6,0.2495]
[1759149483809,2.43019271,4114.9,4114.6,0.2495]
[1759149484115,2.43031083,4114.7,4114.6,0.2495]
[1759149484333,2.43032218,4114.7,4114.3,0.4338]
[1759149484537,2.43024436,4114.9,4114.4,0.2495]
[1759149484737,2.43035663,4114.7,4114.5,0.2495]
[1759149484936,2.4303699,4114.6,4114.5,0.2495]
[1759149485136,0.73105917,4115.0,4114.5,0.2495]
[1759149485435,2.43036245,4114.7,4114.6,0.2495]
[1759149485641,0.73105917,4115.0,4114.6,0.2495]
[1759149485837,2.43031083,4114.7,4114.6,0.2495]
[1759149486039,2.43048804,4114.4,4114.3,0.002]
[1759149487512,2.87148804,4114.4,4114.3,0.002]
[1759149487710,0.441,4114.4,4114.3,0.002]
[1759149488059,2.4300441,4115.2,4114.3,0.002]
[1759149488060,4.458,4115.6,4114.3,0.002]
[1759149488242,2.43043799,4114.5,4114.3,0.002]
[1759149488441,5.43031357,4114.7,4114.3,0.002]
[1759149488626,2.43047676,4114.5,4114.3,0.002]
[1759149488837,3.441,4114.7,4114.3,0.002]
[1759149489010,2.43030797,4114.8,4114.3,0.002]
[1759149489215,6.125,4114.9,4114.3,0.2379]
[1759149489422,2.43043386,4114.5,4114.3,0.002]
[1759149489956,3.0,4114.8,4114.3,0.002]
[1759149490337,2.4303699,4114.6,4114.3,0.002]
[1759149490522,0.468,4114.7,4114.3,0.002]
[1759149490523,2.43042897,4114.5,4114.3,0.002]
[1759149490723,2.43048804,4114.4,4114.3,0.002]
[1759149491037,3.16162974,4114.5,4114.3,0.002]
[1759149491258,0.73115538,4114.5,4114.3,0.707]
[1759149491569,8.55325368,4114.8,4114.4,0.26020488]
[1759149491761,2.4303699,4114.6,4114.3,0.002]
[1759149492263,0.73111797,4114.7,4114.3,0.002]
[1759149492466,0.73111797,4114.7,4114.4,0.705]
[1759149492467,6.16143926,4114.7,4114.4,0.705]
[1759149492674,0.468,4114.6,4114.3,0.002]
[1759149492819,0.1208,4114.5,4114.3,0.002]
[1759149493024,2.43048804,4114.4,4114.3,0.002]
[1759149493241,2.43048804,4114.4,4114.3,14.502]
[1759149493821,0.705,4114.6,4114.3,14.502]
[1759149494025,2.43048804,4114.4,4114.3,14.502]
[1759149494226,2.43037329,4114.6,4114.3,14.7511]
[1759149494426,2.43014097,4115.0,4114.4,0.72340488]
[1759149494727,3.0,4115.1,4114.5,0.6991]
[1759149494926,3.0,4115.3,4114.7,0.1208]
[1759149495133,3.0,4115.3,4114.8,0.27340251]
[1759149495340,2.43008484,4115.1,4114.9,0.2491]
[1759149495755,2.43013365,4115.0,4114.9,0.2491]
[1759149496052,2.43019271,4114.9,4114.7,0.1208]
[1759149496253,2.43019271,4114.9,4114.7,0.3699]
[1759149496454,2.43019271,4114.9,4114.7,0.1208]
[1759149496654,2.43014771,4115.0,4114.8,14.5]
[1759149496957,2.43018978,4115.0,4114.8,14.5]
[1759149497326,2.43009428,4115.1,4114.8,14.5]
[1759149497525,2.43013499,4115.0,4114.8,14.7491]
[1759149498338,3.0,4115.3,4114.8,14.5]
[1759149498537,3.4579,4115.3,4114.8,14.5]
[1759149498737,2.43019271,4114.9,4114.8,14.5]
[1759149499153,3.4579,4115.3,4114.8,14.7491]
[1759149499360,2.43006103,4115.2,4114.8,14.5]
[1759149499561,2.43006103,4115.2,4114.9,0.2491]
[1759149499761,3.0,4115.3,4114.8,14.5]
[1759149499956,0.4579,4115.2,4114.8,14.5]
[1759149500151,2.43019271,4114.9,4114.8,14.5]
[1759149500465,0.4579,4115.2,4114.8,14.5]
[1759149500657,2.43015928,4115.0,4114.8,14.5]
[1759149500855,3.0,4115.3,4114.8,14.5]
[1759149501160,2.43007121,4115.2,4114.9,0.2491]
[1759149501339,2.43007673,4115.1,4115.0,0.2491]
[1759149501546,9.40176583,4115.4,4115.1,0.2491]
[1759149501770,2.4299565,4115.3,4115.2,0.2491]
[1759149501972,0.1208,4115.6,4114.9,4.8008]
[1759149502273,2.42997425,4115.3,4115.0,0.2491]
[1759149502438,2.43002299,4115.2,4114.9,4.3508]
[1759149502834,2.43002299,4115.2,4114.9,4.5999]
[1759149503177,2.42990056,4115.4,4114.9,4.5999]
[1759149503178,2.43009228,4115.1,4114.9,4.5999]
[1759149504262,2.42996568,4115.3,4114.9,4.5999]
[1759149504263,2.43013365,4115.0,4114.9,4.5999]
[1759149504464,2.43009128,4115.1,4114.9,4.5999]
[1759149504870,2.43002597,4115.2,4115.0,0.2491]
[1759149505233,2.43002597,4115.2,4115.0,4.4791]
[1759149505835,6.118,4115.5,4115.1,0.2491]
[1759149506055,2.42997195,4115.3,4115.0,4.68]
[1759149506255,0.1208,4115.6,4115.1,0.72340074]
[1759149506466,5.4296613,4115.8,4115.2,0.8199]
[1759149506669,2.42988059,4115.5,4115.2,0.8199]
[1759149506969,2.42977659,4115.7,4115.3,0.2491]
[1759149507184,2.42984578,4115.5,4115.4,14.5]
[1759149507551,2.42979852,4115.6,4115.4,14.7491]
[1759149507946,3.2358,4115.9,4115.4,14.7491]
[1759149507947,5.66540433,4115.9,4115.4,14.7491]
[1759149508156,5.66540433,4115.9,4115.5,0.2491]
[1759149508360,2.42976131,4115.7,4115.5,0.2491]
[1759149508558,0.1208,4115.9,4115.6,0.27339779]
[1759149508871,0.001,4116.0,4115.7,0.2491]
[1759149509041,0.001,4116.0,4115.7,0.6991]
[1759149509246,0.001,4116.0,4115.8,0.2491]
[1759149509666,0.001,4116.0,4115.9,0.2491]
[1759149511542,0.001,4116.0,4115.9,14.7491]
[1759149512077,2.88844324,4116.0,4115.9,14.5]
[1759149512258,3.42158446,4116.0,4115.9,14.5]
[1759149512877,0.001,4116.0,4115.9,14.5]
[1759149513077,0.001,4116.0,4115.9,14.7491]
[1759149513349,0.001,4116.0,4115.9,14.8699]
[1759149513841,2.43054324,4116.0,4115.9,14.8699]
[1759149514076,2.43054324,4116.0,4115.9,14.6208]
[1759149514511,2.88844324,4116.0,4115.9,14.6208]
[1759149514717,10.11224214,4116.0,4115.9,14.5]
[1759149514914,2.4301055,4115.1,4114.8,3.113]
[1759149515114,2.43013874,4115.0,4114.8,3.113]
[1759149515281,2.43013874,4115.0,4114.9,14.5]
[1759149516189,2.88803874,4115.0,4114.9,14.5]
[1759149516383,2.90153874,4115.0,4114.9,14.5]
[1759149516711,6.01453874,4115.0,4114.9,14.5]
[1759149517100,3.113,4115.0,4114.9,14.5]
[1759149517710,5.54313365,4115.0,4114.9,14.5]
[1759149517900,9.32583365,4115.0,4114.9,14.5]
[1759149519514,2.42968804,4114.4,4114.3,0.002]
[1759149519886,2.43048804,4114.4,4114.3,0.2514]
[1759149520609,2.43048804,4114.4,4114.3,14.7514]
[1759149520818,14.95534718,4116.4,4114.3,14.7514]
[1759149520819,0.4653,4115.3,4114.3,16.70284]
[1759149520985,2.43019621,4114.9,4114.4,0.70670488]